bitfinex-derivatives/quotes_ETHF0:USTF0_20250105
["timestamp","ask_amount","ask_price","bid_price","bid_amount"]
[1736056543419,3.2372071,3635.6,3634.8,10.69635437]
[1736056543604,3.2372071,3635.6,3635.3,0.99162652]
[1736056543799,3.2372071,3635.6,3635.4,1.2874]
[1736056545204,3.2372071,3635.6,3635.5,0.99162652]
[1736056547115,3.2372071,3635.6,3635.4,1.2874]
[1736056547707,3.2372071,3635.6,3635.4,1.56254]
[1736056550007,3.65001251,3635.6,3635.4,1.56254]
[1736056550709,3.65001251,3635.6,3635.4,1.2874]
[1736056551216,3.2372071,3635.6,3635.4,1.2874]
[1736056551714,3.2372071,3635.6,3635.4,1.56253]
[1736056552518,3.65001251,3635.6,3635.4,1.56253]
[1736056553018,3.65001251,3635.6,3635.4,1.2874]
[1736056554821,3.92513251,3635.6,3635.4,1.2874]
[1736056555015,3.2372071,3635.5,3635.4,1.2874]
[1736056556322,3.65001251,3635.5,3635.4,1.2874]
[1736056557821,3.2372071,3635.5,3635.4,1.2874]
[1736056562217,3.65001973,3635.5,3635.4,1.2874]
[1736056562447,3.65001973,3635.5,3635.4,1.56254]
[1736056562623,3.65001973,3635.5,3635.4,1.2874]
[1736056563732,3.65001973,3635.5,3635.4,2.28663688]
[1736056565220,0.41281263,3635.5,3635.4,2.28663688]
[1736056566325,4.59571637,3635.6,3635.4,2.28663688]
[1736056566831,4.32059637,3635.6,3635.4,2.28663688]
[1736056567780,0.41281263,3635.5,3635.4,2.28663688]
[1736056569742,0.41281263,3635.5,3635.4,2.56177688]
[1736056573530,0.41281263,3635.5,3635.4,2.28663688]
[1736056575438,0.82071263,3635.5,3635.4,2.28663688]
[1736056578443,0.41281263,3635.5,3635.4,2.28663688]
[1736056578839,4.733409,3635.5,3635.4,2.28663688]
[1736056579440,4.733409,3635.5,3635.4,2.56177688]
[1736056580249,1.057,3635.9,3635.5,0.27513]
[1736056580250,4.733409,3635.6,3635.5,0.27513]
[1736056580571,4.733409,3635.6,3635.5,1.27436688]
[1736056581653,4.32059637,3635.7,3635.4,1.2874]
[1736056581843,4.32059637,3635.7,3635.5,0.99923688]
[1736056582851,4.75209637,3635.7,3635.5,0.99923688]
[1736056584048,0.41281263,3635.6,3635.5,0.99923688]
[1736056584445,0.41281263,3635.6,3635.4,1.56253]
[1736056585348,1.41204951,3635.6,3635.3,4.32324214]
[1736056585551,0.27514,3635.4,3635.3,4.32324214]
[1736056586844,0.68795263,3635.4,3635.1,8.53027902]
[1736056587053,0.4338,3635.3,3635.1,8.53027902]
[1736056587745,0.4338,3635.3,3635.1,5.32247902]
[1736056587950,0.4338,3635.3,3635.1,8.53027902]
[1736056588256,4.73489887,3635.2,3635.1,8.53027902]
[1736056592286,4.73489887,3635.2,3635.1,8.80543902]
[1736056592956,4.73489887,3635.2,3635.1,5.59763902]
[1736056593156,4.73489887,3635.2,3635.1,8.80543902]
[1736056594961,0.41281263,3635.2,3635.1,8.80543902]
[1736056597856,4.32208624,3635.3,3635.1,8.53027902]
[1736056598161,4.32208624,3635.3,3635.2,0.27515]
[1736056598361,4.32208624,3635.3,3635.2,0.71795]
[1736056599252,4.73489887,3635.3,3635.2,0.4428]
[1736056600161,0.41281263,3635.3,3635.2,0.4428]
[1736056600558,0.41281263,3635.3,3635.2,0.71795]
[1736056601358,6.45722496,3635.4,3635.2,0.71795]
[1736056601563,6.45722496,3635.4,3635.3,0.4318]
[1736056601962,6.45722496,3635.4,3635.3,0.70694]
[1736056602567,11.69239611,3635.4,3635.3,1.13064]
[1736056603461,11.69239611,3635.4,3635.3,0.8555]
[1736056603668,11.69239611,3635.4,3635.3,1.13064]
[1736056604672,11.69239611,3635.4,3635.3,0.8555]
[1736056606669,11.69239611,3635.4,3635.3,1.13064]
[1736056607467,11.69239611,3635.4,3635.3,0.8555]
[1736056609769,10.63539611,3635.4,3635.3,1.13064]
[1736056610567,10.63539611,3635.4,3635.3,0.8555]
[1736056610871,10.63539611,3635.4,3635.3,1.13064]
[1736056611071,5.23517115,3635.4,3635.3,1.13064]
[1736056611476,5.23517115,3635.4,3635.3,0.8555]
[1736056612173,4.73210305,3635.4,3635.3,0.8555]
[1736056613775,4.31929042,3635.4,3635.3,0.8555]
[1736056614778,4.73210305,3635.4,3635.3,0.8555]
[1736056615676,4.31929042,3635.4,3635.3,0.8555]
[1736056618588,4.73210305,3635.4,3635.3,0.8555]
[1736056619377,5.00724305,3635.4,3635.3,0.8555]
[1736056620079,5.50956783,3635.4,3635.3,0.8555]
[1736056621383,0.27514,3635.4,3635.3,0.8555]
[1736056623026,10.90979279,3635.4,3635.3,0.8555]
[1736056625386,5.50956783,3635.4,3635.3,0.8555]
[1736056627888,10.90979279,3635.4,3635.3,0.8555]
[1736056631991,5.50956783,3635.4,3635.3,0.8555]
[1736056633296,0.27514,3635.4,3635.3,0.8555]
[1736056634491,5.50956783,3635.4,3635.3,0.8555]
[1736056635194,8.71736783,3635.4,3635.3,0.8555]
[1736056638295,8.71736783,3635.4,3635.3,1.85482551]
[1736056639896,14.12475823,3635.4,3635.3,1.85482551]
[1736056641699,10.91695823,3635.4,3635.3,1.85482551]
[1736056642693,5.50956783,3635.4,3635.3,1.85482551]
[1736056643697,5.23442783,3635.4,3635.3,1.85482551]
[1736056643894,5.23442783,3635.4,3635.3,2.12996551]
[1736056644500,4.55822783,3635.4,3635.3,2.12996551]
[1736056644899,4.55822783,3635.4,3635.3,3.12929102]
[1736056645343,4.55822783,3635.4,3635.3,2.12996551]
[1736056645600,4.55822783,3635.4,3635.3,3.12929102]
[1736056645997,3.20582783,3635.4,3635.3,3.12929102]
[1736056646196,2.02962783,3635.4,3635.3,3.12929102]
[1736056646401,1.48728939,3635.4,3635.3,3.12929102]
[1736056647805,3.24373409,3636.0,3635.3,13.60868486]
[1736056648006,3.24373409,3636.0,3635.9,0.99932551]
[1736056649099,5.02385879,3636.2,3635.9,0.99932551]
[1736056649100,3.94261409,3636.2,3635.9,0.99932551]
[1736056649293,3.94261409,3636.2,3635.9,1.42352551]
[1736056649997,3.94261409,3636.2,3636.1,0.99932551]
[1736056650899,3.66753409,3636.2,3636.1,0.99932551]
[1736056651301,3.66753409,3636.2,3635.9,1.42352551]
[1736056652304,3.94261409,3636.2,3635.9,1.42352551]
[1736056653206,4.6668596,3636.2,3635.7,3.2078]
[1736056653409,0.2751,3636.0,3635.7,3.2078]
[1736056653610,0.4252,3635.9,3635.7,3.2078]
[1736056654112,0.4475,3635.8,3635.7,3.2078]
[1736056657908,0.4475,3635.8,3635.6,0.99932551]
[1736056659216,3.69123409,3635.8,3635.6,0.99932551]
[1736056659419,3.96634409,3635.8,3635.6,0.99932551]
[1736056660509,3.96634409,3635.8,3635.1,7.9694299]
[1736056660510,1.057,3635.7,3635.1,7.9694299]
[1736056660716,0.99932551,3635.5,3635.1,5.76095541]
[1736056660923,0.4399,3635.4,3635.1,5.76095541]
[1736056661108,0.867,3635.4,3635.1,5.76095541]
[1736056661614,0.867,3635.4,3635.1,1.43622551]
[1736056662013,0.867,3635.4,3635.3,0.99932551]
[1736056679027,0.27514,3635.3,3635.1,0.4369]
[1736056679230,0.27514,3635.3,3634.9,8.98105541]
[1736056679529,0.27516,3635.2,3634.9,8.98105541]
[1736056679728,0.27516,3635.1,3634.9,4.20712551]
[1736056680029,0.27515,3635.2,3634.9,4.20712551]
[1736056680324,0.4302,3635.0,3634.9,4.20712551]
[1736056680923,0.4302,3635.0,3634.9,4.48229551]
[1736056681826,0.4302,3635.0,3634.9,4.89829551]
[1736056682523,0.4302,3635.0,3634.9,4.62312551]
[1736056686029,0.4302,3635.0,3634.9,1.41532551]
[1736056687028,0.4302,3635.0,3634.9,1.69049551]
[1736056689326,3.51888409,3635.3,3634.9,1.69049551]
[1736056689530,3.51888409,3635.3,3635.2,0.27515]
[1736056689531,3.24373409,3635.3,3635.2,0.27515]
[1736056689731,3.24373409,3635.3,3635.2,3.48295]
[1736056690832,0.4234,3635.6,3635.2,3.2078]
[1736056691023,0.4234,3635.6,3635.3,1.42312551]
[1736056691733,3.66713409,3635.6,3635.3,1.42312551]
[1736056691927,3.94225409,3635.6,3635.3,1.42312551]
[1736056693324,3.94225409,3635.6,3635.5,0.99932551]
[1736056693926,4.35507762,3635.6,3635.5,0.99932551]
[1736056694829,4.07995762,3635.6,3635.5,0.99932551]
[1736056695334,0.83622353,3635.6,3635.5,0.99932551]
[1736056696233,0.27515,3635.2,3635.1,0.99932551]
[1736056696732,1.33315,3635.2,3635.1,0.99932551]
[1736056696937,1.76055,3635.2,3635.1,0.99932551]
[1736056698034,6.49835232,3635.2,3635.1,0.99932551]
[1736056705043,2.17337353,3635.2,3635.1,0.99932551]
[1736056716248,1.76055,3635.2,3635.1,0.99932551]
[1736056718057,2.17343006,3635.2,3635.1,0.99932551]
[1736056723470,6.90301082,3635.2,3635.1,0.99932551]
[1736056730273,2.17343006,3635.2,3635.1,0.99932551]
[1736056733966,1.89828006,3635.2,3634.8,4.32899239]
[1736056734170,0.27517,3634.9,3634.8,5.3283179]
[1736056734875,0.27517,3634.9,3634.8,0.99932551]
[1736056736178,0.68805006,3634.9,3634.8,0.99932551]
[1736056736671,0.41288006,3634.9,3634.7,4.75809239]
[1736056736877,0.68638,3634.8,3634.7,4.75809239]
[1736056737122,1.12168,3634.8,3634.7,4.75809239]
[1736056738875,1.12168,3634.8,3634.7,0.4291]
[1736056738876,11.66332183,3634.8,3634.7,0.4291]
[1736056741283,12.38746734,3634.8,3634.4,0.99932551]
[1736056741586,0.2752,3634.5,3634.4,0.99932551]
[1736056741882,1.3332,3634.5,3634.4,0.99932551]
[1736056743681,11.46196177,3634.5,3634.4,0.99932551]
[1736056743989,11.87484183,3634.5,3634.4,0.99932551]
[1736056745079,1.74608006,3634.5,3634.4,0.99932551]
[1736056746074,1.3332,3634.5,3634.4,0.99932551]
[1736056747387,6.06195762,3634.5,3634.4,0.99932551]
[1736056750878,1.74608006,3634.5,3634.4,0.99932551]
[1736056751476,0.68808006,3634.5,3634.4,0.99932551]
[1736056751685,1.74608006,3634.5,3634.4,0.99932551]
[1736056753087,1.74608006,3634.5,3633.6,0.83287239]
[1736056753088,0.27527,3633.7,3633.6,0.83287239]
[1736056753289,0.27527,3633.6,3633.5,4.50064648]
[1736056753484,0.70887,3633.6,3633.5,3.49966648]
[1736056753989,0.70887,3633.6,3633.5,1.16249648]
[1736056754290,0.70887,3633.6,3633.5,6.48e-06]
[1736056754885,5.70887,3633.6,3633.5,6.48e-06]
[1736056755092,11.43025409,3633.6,3632.5,1.43272551]
[1736056755286,0.27535,3632.6,3632.5,1.43272551]
[1736056755489,1.33335,3632.6,3632.5,1.43272551]
[1736056756222,1.33335,3632.6,3632.5,0.4334]
[1736056756223,1.058,3632.6,3632.5,0.4334]
[1736056756692,1.33335,3632.6,3632.5,0.4334]
[1736056761700,0.27535,3632.6,3632.5,0.4334]
[1736056762089,0.27535,3632.6,3632.5,2.65113478]
[1736056772503,0.27534,3632.7,3632.5,2.65113478]
[1736056772704,0.27535,3632.6,3632.5,2.65113478]
[1736056773227,3.2078,3633.3,3632.5,2.65113478]
[1736056773399,3.22583248,3633.5,3633.2,2.21773478]
[1736056773598,3.22583248,3633.5,3633.3,0.4194]
[1736056773804,3.50112248,3633.5,3633.4,0.4443]
[1736056774802,2.41912248,3633.5,3633.4,0.4443]
[1736056775000,0.27529,3633.5,3633.4,0.4443]
[1736056776204,0.27529,3633.5,3633.4,1.44463365]
[1736056778540,4.2898,3633.7,3633.4,1.44463365]
[1736056778803,4.56507,3633.7,3633.6,1.00033365]
[1736056784912,4.2898,3633.7,3633.6,1.00033365]
[1736056789112,3.2078,3633.7,3633.6,1.00033365]
[1736056789515,2.14383248,3633.8,3633.6,1.00033365]
[1736056791113,2.41909248,3633.8,3633.6,1.00033365]
[1736056791613,0.27527,3633.7,3633.6,1.00033365]
[1736056792012,2.41910248,3633.7,3633.6,1.00033365]
[1736056792515,2.14383248,3633.7,3633.6,1.00033365]
[1736056793719,2.41910248,3633.7,3633.6,1.00033365]
[1736056793918,2.14383248,3633.7,3633.6,1.00033365]
[1736056794315,2.14383248,3633.7,3633.6,1.27560365]
[1736056795511,2.14383248,3633.7,3633.6,1.00033365]
[1736056795713,0.27525,3633.9,3633.6,1.00033365]
[1736056795912,0.27525,3633.9,3633.8,1.00033365]
[1736056796917,2.14383248,3633.9,3633.8,1.00033365]
[1736056797818,2.41908248,3633.9,3633.8,1.00033365]
[1736056803423,2.14383248,3633.9,3633.8,1.00033365]
[1736056803626,2.41908248,3633.9,3633.8,1.00033365]
[1736056803921,2.14383248,3633.9,3633.8,1.00033365]
[1736056804627,2.14383248,3633.9,3633.8,4.48339365]
[1736056804829,2.13123245,3634.0,3633.9,0.27525]
[1736056805617,0.27525,3633.9,3633.8,3.2078]
[1736056805815,0.68625,3633.9,3633.8,1.00033365]
[1736056806022,0.411,3633.9,3633.8,1.00033365]
[1736056810260,0.411,3633.9,3633.8,1.27559365]
[1736056810816,0.411,3633.9,3633.8,1.00033365]
[1736056811232,0.411,3633.9,3633.8,1.27559365]
[1736056811525,0.411,3633.9,3633.8,1.00033365]
[1736056812526,1.41133365,3633.9,3632.8,14.03028098]
[1736056812728,1.41133365,3633.9,3633.5,1.00033365]
[1736056813321,1.41133365,3633.9,3633.7,1.00033365]
[1736056813322,0.411,3633.9,3633.7,1.00033365]
[1736056813521,0.27526,3633.8,3633.7,1.00033365]
[1736056814027,1.41133365,3633.9,3633.1,0.4074]
[1736056814231,0.2753,3633.3,3633.1,1.00033365]
[1736056814426,1.2876,3633.2,3633.1,1.00033365]
[1736056820942,1.5629,3633.2,3633.1,1.00033365]
[1736056821345,1.2876,3633.2,3633.1,1.00033365]
[1736056824246,1.2876,3633.2,3633.1,1.27564365]
[1736056825445,4.30159996,3633.6,3633.1,1.00033365]
[1736056825640,1.074,3633.5,3633.3,0.2753]
[1736056825948,5.37559996,3633.6,3633.2,0.8334]
[1736056826151,5.37559996,3633.6,3633.4,0.27529]
[1736056826849,0.41305479,3633.5,3633.4,0.27529]
[1736056827049,0.41305479,3633.5,3633.4,1.27562365]
[1736056827246,0.41305479,3633.5,3633.4,1.00033365]
[1736056830253,0.41305479,3633.5,3633.4,1.27562365]
[1736056832654,0.41305479,3633.5,3633.4,1.00033365]
[1736056834760,0.41305479,3633.5,3633.4,1.27562365]
[1736056836950,4.30159996,3633.6,3633.4,1.27562365]
[1736056836951,0.41305479,3633.6,3633.5,0.27528]
[1736056838169,7.50939996,3633.8,3633.7,0.27527]
[1736056838458,7.50939996,3633.8,3633.7,1.27560365]
[1736056839063,4.30159996,3633.8,3633.7,1.27560365]
[1736056839363,0.4238,3633.9,3633.7,1.00033365]
[1736056839552,0.4238,3633.9,3633.8,0.71756]
[1736056839753,0.4238,3633.9,3633.8,1.15686]
[1736056843257,3.6842178,3634.0,3633.8,0.8816]
[1736056843502,3.6842178,3634.0,3633.9,1.27558365]
[1736056851160,0.72063,3634.2,3633.9,1.00033365]
[1736056852463,0.41298368,3634.1,3633.9,1.00033365]
[1736056852866,0.41298368,3634.1,3633.9,1.27558365]
[1736056858268,0.41298368,3634.1,3633.9,1.00033365]
[1736056862370,0.68822368,3634.1,3633.9,1.00033365]
[1736056862977,0.41298368,3634.1,3633.9,1.00033365]
[1736056863172,0.27527,3633.7,3633.6,1.00033365]
[1736056864973,0.8801,3633.8,3633.6,1.00033365]
[1736056865175,1.15536,3633.8,3633.6,1.00033365]
[1736056866077,3.23766987,3633.7,3633.6,1.00033365]
[1736056867573,3.51293987,3633.7,3633.6,1.00033365]
[1736056868476,3.23766987,3633.7,3633.6,1.00033365]
[1736056870082,3.65068901,3633.7,3633.6,1.00033365]
[1736056871479,3.23766987,3633.7,3633.6,1.00033365]
[1736056872278,3.51293987,3633.7,3633.6,1.00033365]
[1736056872684,3.23766987,3633.7,3633.6,1.00033365]
[1736056874282,3.65068079,3633.7,3633.6,1.00033365]
[1736056876980,0.41301092,3633.7,3633.6,1.00033365]
[1736056877288,0.41301092,3633.7,3633.6,1.27560365]
[1736056878289,4.30159996,3633.8,3633.6,1.00033365]
[1736056878581,4.30159996,3633.8,3633.7,0.27527]
[1736056879086,4.30159996,3633.8,3633.7,3.89697]
[1736056880881,4.30159996,3634.1,3633.7,3.6217]
[1736056881081,3.24359171,3633.8,3633.7,3.89697]
[1736056884382,3.24359171,3633.8,3633.7,10.38029844]
[1736056888386,4.30159996,3634.0,3633.7,10.38029844]
[1736056888387,3.24359171,3633.9,3633.7,10.10502844]
[1736056888592,3.24359171,3633.9,3633.8,1.27559365]
[1736056889579,3.24359171,3633.9,3633.8,5.60690016]
[1736056895793,3.24359171,3633.9,3633.8,8.81470016]
[1736056896395,3.24359171,3633.9,3633.8,5.60690016]
[1736056896595,3.24359171,3633.9,3633.8,8.81470016]
[1736056897896,3.24359171,3633.9,3633.8,9.25320016]
[1736056899694,3.24359171,3633.9,3633.8,6.04540016]
[1736056900008,3.65660263,3634.0,3633.9,0.27525]
[1736056901101,0.41301092,3634.0,3633.9,0.27525]
[1736056902200,5.15569996,3634.1,3633.8,8.97794016]
[1736056902390,5.15569996,3634.1,3634.0,1.27557365]
[1736056903902,5.56871088,3634.1,3634.0,1.27557365]
[1736056910706,5.56871088,3634.1,3634.0,1.55247365]
[1736056910892,5.56871088,3634.1,3634.0,1.92237365]
[1736056911099,6.56904453,3634.1,3634.0,0.6468]
[1736056911399,10.05208453,3634.1,3634.0,0.6468]
[1736056912602,10.05208453,3634.1,3633.8,4.33130651]
[1736056912603,9.77684453,3634.1,3633.8,4.33130651]
[1736056912904,9.77684453,3634.1,3633.8,1.09270651]
[1736056912905,1.27558365,3633.9,3633.8,1.09270651]
[1736056913100,1.00033365,3633.9,3633.3,7.48366209]
[1736056913300,0.27529,3633.4,3633.3,6.48332844]
[1736056913802,1.33529,3633.5,3633.3,6.48332844]
[1736056914191,1.33529,3633.5,3633.3,7.48366209]
[1736056914192,1.06,3633.5,3633.3,7.48366209]
[1736056914396,5.01421134,3633.4,3633.1,1.00033365]
[1736056915200,0.2753,3633.3,3633.1,1.00033365]
[1736056915797,3.24349399,3633.2,3633.1,1.00033365]
[1736056915997,3.66349399,3633.2,3633.1,1.00033365]
[1736056916498,4.09079399,3633.2,3633.1,1.00033365]
[1736056916798,4.50380491,3633.2,3633.1,1.00033365]
[1736056917412,4.50380491,3633.2,3632.9,0.4489]
[1736056917413,5.50413856,3633.2,3632.9,0.4489]
[1736056917607,0.27532,3633.1,3632.9,0.4489]
[1736056917901,0.27532,3633.1,3632.8,1.00033365]
[1736056918205,5.09112764,3633.2,3632.8,1.00033365]
[1736056918403,0.27532,3633.0,3632.8,1.00033365]
[1736056918598,0.27531,3633.1,3632.8,1.00033365]
[1736056918799,0.27532,3633.0,3632.8,1.00033365]
[1736056919200,3.24349399,3632.9,3632.8,1.00033365]
[1736056919909,3.24349399,3632.9,3632.6,1.43913365]
[1736056920104,3.51882399,3632.9,3632.6,1.43913365]
[1736056920604,0.27533,3632.9,3632.6,1.43913365]
[1736056920997,4.51914764,3633.0,3632.6,1.43913365]
[1736056921406,0.27533,3632.9,3632.6,1.43913365]
[1736056922003,3.51882399,3632.9,3632.6,1.43913365]
[1736056922802,0.27533,3632.9,3632.6,1.43913365]
[1736056923002,4.24382764,3633.0,3632.6,1.43913365]
[1736056923201,0.27533,3632.9,3632.6,1.43913365]
[1736056923700,4.24382764,3633.0,3632.6,0.4388]
[1736056923701,2.06033365,3632.8,3632.6,0.4388]
[1736056923900,0.27534,3632.7,3632.6,0.4388]
[1736056924112,1.12114,3632.7,3632.6,0.4388]
[1736056925516,0.27535,3632.6,3632.4,1.00033365]
[1736056926564,0.27535,3632.6,3632.2,1.70841365]
[1736056926812,0.27535,3632.6,3632.2,1.43303365]
[1736056926813,1.00033365,3632.5,3632.2,1.43303365]
[1736056928007,1.27569365,3632.5,3632.2,0.4327]
[1736056928215,1.00033365,3632.5,3632.2,0.4327]
[1736056928405,0.27537,3632.4,3632.2,0.4327]
[1736056928613,1.27569365,3632.5,3632.2,0.4327]
[1736056929215,1.00033365,3632.5,3632.2,0.4327]
[1736056929612,1.00033365,3632.3,3632.2,0.4327]
[1736056930320,0.27537,3632.4,3632.2,0.4327]
[1736056931018,3.15939649,3632.5,3632.2,0.4327]
[1736056931218,0.27537,3632.3,3632.2,0.4327]
[1736056931621,1.27570365,3632.3,3632.2,0.4327]
[1736056944126,1.72360365,3632.3,3632.2,0.4327]
[1736056944631,1.27570365,3632.3,3632.2,0.4327]
[1736056944832,1.00033365,3632.3,3630.5,6.48332844]
[1736056945024,0.27542,3631.8,3631.7,0.4178]
[1736056945224,0.27542,3631.8,3631.7,0.84]
[1736056946333,1.00033365,3631.8,3631.2,0.4316]
[1736056946532,1.27577365,3631.4,3631.3,0.8384]
[1736056958938,0.27544,3631.4,3631.3,0.8384]
[1736056959133,1.00033365,3631.4,3630.6,3.2078]
[1736056959342,1.27582365,3630.7,3630.6,3.2078]
[1736056960639,1.27582365,3630.7,3629.8,6.48332844]
[1736056960942,1.00033365,3630.3,3630.1,0.27554]
[1736056961145,1.00033365,3630.3,3630.0,3.2078]
[1736056961339,1.00033365,3630.3,3630.0,3.48334]
[1736056961590,3.2078,3630.7,3630.0,3.48335]
[1736056961591,0.27551,3630.5,3630.0,3.48335]
[1736056961743,1.00033365,3630.3,3630.0,3.48335]
[1736056961944,1.00033365,3630.3,3630.0,3.2078]
[1736056962440,1.00033365,3630.1,3630.0,3.2078]
[1736056963047,2.06033365,3630.1,3630.0,3.2078]
[1736056964345,1.06,3630.1,3629.6,4.20813365]
[1736056964548,2.06033365,3630.1,3629.8,0.27556]
[1736056965345,1.00033365,3629.9,3629.7,0.27557]
[1736056966037,1.00033365,3629.9,3629.6,4.20813365]
[1736056966444,1.06,3630.0,3629.9,0.27555]
[1736056967338,1.06,3630.0,3629.6,4.20813365]
[1736056967339,1.06,3630.0,3629.8,0.27556]
[1736056969147,1.06,3630.0,3629.6,4.20813365]
[1736056969348,1.06,3630.0,3629.9,0.27555]
[1736056969565,1.00033365,3630.1,3629.6,4.20813365]
[1736056969851,2.15906284,3630.6,3630.5,0.27551]
[1736056970245,4.21939649,3630.9,3630.4,4.20813365]
[1736056970445,4.21939649,3630.9,3630.5,0.27551]
[1736056970646,4.21939649,3630.9,3630.6,1.00033365]
[1736056970848,4.21939649,3630.9,3630.8,0.27549]
[1736056971046,3.54259649,3630.9,3630.8,0.27549]
[1736056971347,2.15906284,3630.9,3630.8,1.27582365]
[1736056971767,1.072,3631.1,3631.0,0.27547]
[1736056972349,2.15906284,3631.5,3630.8,5.42740916]
[1736056972654,3.23106284,3631.5,3631.4,0.27544]
[1736056973542,7.53371042,3631.9,3630.9,0.4134]
[1736056973543,5.36686284,3631.9,3630.9,0.4134]
[1736056973851,1.072,3631.8,3631.5,0.27543]
[1736056974354,1.072,3631.8,3631.6,0.4382]
[1736056974553,5.36686284,3631.9,3631.7,0.27542]
[1736056974754,6.43886284,3631.9,3631.8,0.68511]
[1736056974943,4.2798,3631.9,3631.8,0.4097]
[1736056977048,3.2078,3631.9,3631.8,0.4097]
[1736056977951,1.071,3632.0,3631.9,0.2754]
[1736056978964,0.20798957,3632.1,3631.8,0.4097]
[1736056979143,0.20798957,3632.1,3632.0,0.27539]
[1736056980857,0.20798957,3632.1,3631.8,0.4097]
[1736056981050,0.20798957,3632.1,3631.9,0.2754]
[1736056981451,0.20798957,3632.1,3631.8,0.4097]
[1736056981753,0.20798957,3632.1,3632.0,0.27539]
[1736056982454,0.20798957,3632.1,3631.9,0.2754]
[1736056982650,2.21960916,3632.2,3631.9,0.2754]
[1736056983248,2.21960916,3632.2,3631.8,0.4097]
[1736056983454,2.21960916,3632.2,3631.8,0.68511]
[1736056983655,2.21960916,3632.2,3631.8,0.4097]
[1736056984754,2.21960916,3632.2,3631.8,0.6851]
[1736056985751,0.2754,3631.9,3631.8,0.6851]
[1736056991757,0.2754,3631.9,3631.6,3.646]
[1736056992855,2.49500916,3631.9,3631.6,3.2078]
[1736056993064,0.27542,3631.7,3631.6,3.2078]
[1736056993657,1.071,3631.8,3631.6,3.2078]
[1736056993859,1.071,3631.8,3631.2,0.4273]
[1736056994057,0.27544,3631.4,3630.9,0.27547]
[1736056994265,5.42740916,3631.5,3630.8,3.2078]
[1736056994555,0.27546,3631.2,3630.8,3.48328]
[1736056994926,0.27545,3631.3,3630.8,3.48328]
[1736056995060,1.2829,3631.4,3630.8,3.2078]
[1736056995562,2.49506916,3631.2,3630.8,3.2078]
[1736056995751,1.071,3631.1,3630.8,3.2078]
[1736056997157,1.071,3631.1,3630.9,0.27548]
[1736056997962,1.071,3631.1,3631.0,0.27547]
[1736056998169,1.071,3631.1,3630.8,3.2078]
[1736056998359,1.071,3631.1,3630.9,0.27548]
[1736056998550,1.071,3631.1,3631.0,0.27547]
[1736056999464,1.071,3631.1,3630.9,0.27548]
[1736056999965,1.071,3631.1,3630.8,3.2078]
[1736057000159,1.071,3631.1,3630.8,3.48329]
[1736057000657,1.34647,3631.1,3630.8,3.2078]
[1736057001250,1.34647,3631.1,3630.7,0.27549]
[1736057001758,1.071,3631.1,3630.8,0.27548]
[1736057001959,1.071,3631.1,3630.9,0.27548]
[1736057002159,1.071,3631.1,3630.8,0.27549]
[1736057003060,1.071,3631.1,3631.0,0.00211797]
[1736057005162,1.071,3631.1,3631.0,0.27758797]
[1736057005660,2.15321461,3631.4,3631.3,0.27545]
[1736057005864,2.15321461,3631.4,3631.1,0.8713]
[1736057006067,2.15321461,3631.4,3631.2,0.70735]
[1736057006267,2.15321461,3631.4,3631.2,0.4319]
[1736057006566,2.15321461,3631.4,3631.0,0.00211797]
[1736057006961,0.27545,3631.3,3631.0,0.00211797]
[1736057007157,0.27546,3631.1,3631.0,0.00211797]
[1736057010566,6.06836461,3631.2,3631.0,0.00211797]
[1736057010771,1.08,3631.1,3631.0,0.00211797]
[1736057011071,3.23321461,3631.1,3631.0,0.00211797]
[1736057011565,3.50867461,3631.1,3631.0,0.00211797]
[1736057012663,1.08,3631.1,3631.0,0.00211797]
[1736057014085,3.23321461,3631.1,3631.0,0.00211797]
[1736057015973,2.15321461,3631.1,3631.0,0.27758797]
[1736057016375,2.15321461,3631.1,3631.0,0.00211797]
[1736057016573,6.43762192,3631.2,3631.0,0.00211797]
[1736057017176,7.439346,3631.2,3631.0,0.00211797]
[1736057017769,6.36598061,3631.2,3631.0,0.00211797]
[1736057018475,5.36425653,3631.2,3631.1,0.27546]
[1736057018680,5.36425653,3631.2,3631.1,0.69686]
[1736057018876,3.2078,3631.2,3631.1,0.69686]
[1736057019179,3.2078,3631.2,3631.1,0.4214]
[1736057019408,3.22982192,3631.3,3631.1,0.4214]
[1736057019567,3.22982192,3631.3,3631.2,1.27717408]
[1736057020579,2.1567483,3631.5,3631.3,0.27545]
[1736057020779,2.1567483,3631.5,3631.4,0.27544]
[1736057021674,2.1567483,3631.5,3631.3,0.27544]
[1736057021979,2.1567483,3631.6,3631.3,0.27544]
[1736057023685,2.1567483,3631.5,3631.3,0.27544]
[1736057024784,2.1567483,3631.5,3631.1,0.4214]
[1736057024984,2.1567483,3631.5,3631.4,0.27544]
[1736057025488,2.1567483,3631.5,3631.2,0.27545]
[1736057026291,0.27543,3631.5,3631.1,0.4214]
[1736057026484,0.27544,3631.5,3631.1,0.4214]
[1736057026788,0.27544,3631.5,3631.1,0.69686]
[1736057027285,2.15733077,3631.3,3631.1,0.4214]
[1736057028685,2.15733077,3631.2,3631.1,0.4214]
[1736057030090,3.22982192,3631.3,3631.1,0.4214]
[1736057031082,3.22982192,3631.2,3631.1,0.4214]
[1736057033882,3.22982192,3631.2,3631.1,0.69686]
[1736057034682,3.22982192,3631.3,3631.1,0.69686]
[1736057036583,3.22982192,3631.3,3631.1,0.4214]
[1736057037184,4.30642923,3631.3,3631.1,0.4214]
[1736057037789,0.27545,3631.2,3631.1,0.4214]
[1736057037992,4.58187923,3631.3,3631.1,0.4214]
[1736057038489,4.30642923,3631.3,3631.1,0.4214]
[1736057038788,4.7197055,3631.2,3631.1,0.4214]
[1736057040084,5.42271927,3631.2,3631.1,0.4214]
[1736057041286,5.38303653,3631.2,3631.1,0.4214]
[1736057042692,10.8057558,3631.3,3631.1,0.4214]
[1736057043292,11.0812058,3631.3,3631.1,0.4214]
[1736057043492,11.0812058,3631.3,3631.0,0.00211797]
[1736057043693,5.65848653,3631.3,3631.0,0.00211797]
[1736057045000,4.32407577,3631.1,3631.0,0.00211797]
[1736057046899,4.32407577,3631.1,3631.0,0.42701797]
[1736057047492,4.59953577,3631.1,3631.0,0.42701797]
[1736057047696,4.32407577,3631.1,3631.0,0.42701797]
[1736057048499,4.32407577,3631.1,3631.0,0.00211797]
[1736057048500,1.41490592,3631.1,3631.0,0.00211797]
[1736057048702,5.89979557,3631.1,3631.0,0.00211797]
[1736057050100,10.90961073,3631.1,3631.0,0.00211797]